[Event "Titled Tuesday Blitz January 03 Early 2023"]
[White "Dragnev, Valentin"]
[Black "Dominguez Perez, Leinier"]
[WhiteFideId "1634852"]
[BlackFideId "3503240"]
[WhiteElo "2593"]
[BlackElo "2739"]
[Result "0-1"]
[Round "06"]
[TimeControl "180+2"]
[Date "2023.01.03"]
[WhiteClock "0:00:01"]
[BlackClock "0:00:15"]

1. e4 {[%clk 0:03:00]}  c5 {[%clk 0:02:59]} 2. Nc3 {[%clk 0:03:00]}  d6 {[%clk 0:02:59]} 3. Bb5+ {[%clk 0:03:00]}  Nd7 {[%clk 0:02:57]} 4. d4 {[%clk 0:02:56]}  cxd4 {[%clk 0:02:57]} 5. Qxd4 {[%clk 0:02:57]}  a6 {[%clk 0:02:57]} 6. Bxd7+ {[%clk 0:02:57]}  Bxd7 {[%clk 0:02:58]} 7. Nge2 {[%clk 0:02:58]}  Rc8 {[%clk 0:02:50]} 8. Bg5 {[%clk 0:02:50]}  h6 {[%clk 0:02:50]} 9. Bh4 {[%clk 0:02:50]}  e5 {[%clk 0:02:49]} 10. Qd5 {[%clk 0:02:37]}  Qxh4 {[%clk 0:02:48]} 11. Qxb7 {[%clk 0:02:37]}  Nf6 {[%clk 0:02:38]} 12. Qxa6 {[%clk 0:02:32]}  Be7 {[%clk 0:02:27]} 13. Qd3 {[%clk 0:02:24]}  O-O {[%clk 0:02:26]} 14. a4 {[%clk 0:02:25]}  Be6 {[%clk 0:02:24]} 15. a5 {[%clk 0:02:02]}  Bc4 {[%clk 0:01:57]} 16. Qf3 {[%clk 0:02:01]}  d5 {[%clk 0:01:57]} 17. exd5 {[%clk 0:01:57]}  e4 {[%clk 0:01:57]} 18. Qf5 {[%clk 0:01:45]}  g6 {[%clk 0:01:29]} 19. Qe5 {[%clk 0:01:43]}  Qxf2+ {[%clk 0:01:25]} 20. Kxf2 {[%clk 0:01:42]}  Ng4+ {[%clk 0:01:26]} 21. Kg3 {[%clk 0:01:23]}  Nxe5 {[%clk 0:01:27]} 22. Nf4 {[%clk 0:01:23]}  f5 {[%clk 0:01:22]} 23. a6 {[%clk 0:01:14]}  Bd6 {[%clk 0:01:18]} 24. a7 {[%clk 0:00:38]}  g5 {[%clk 0:01:16]} 25. b3 {[%clk 0:00:28]}  gxf4+ {[%clk 0:01:04]} 26. Kh4 {[%clk 0:00:22]}  Be7+ {[%clk 0:00:50]} 27. Kh5 {[%clk 0:00:13]}  Kh7 {[%clk 0:00:33]} 28. bxc4 {[%clk 0:00:14]}  Rg8 {[%clk 0:00:32]} 29. Ra6 {[%clk 0:00:04]}  Rg5+ {[%clk 0:00:27]} 30. Kh4 {[%clk 0:00:04]}  Rcg8 {[%clk 0:00:16]} 31. g4 {[%clk 0:00:01]}  Rxg4+ {[%clk 0:00:15]} 32. Kh3 {[%clk 0:00:01]}  Rh4# {[%clk 0:00:15]} 0-1


[Site "https://www.chess.com"]

[Event "Titled Tuesday Blitz January 03 Early 2023"]
[White "Agasarov, Benik"]
[Black "Oliveira, Silvio Eduardo"]
[WhiteFideId "13314823"]
[BlackFideId "2111560"]
[WhiteElo "2235"]
[BlackElo "2297"]
[Result "0-1"]
[Round "06"]
[TimeControl "180+2"]
[Date "2023.01.03"]
[WhiteClock "0:00:07"]
[BlackClock "0:01:00"]

1. e4 {[%clk 0:03:00]}  e5 {[%clk 0:02:59]} 2. Nf3 {[%clk 0:03:00]}  Nc6 {[%clk 0:02:59]} 3. Bb5 {[%clk 0:03:00]}  Nf6 {[%clk 0:02:58]} 4. O-O {[%clk 0:02:59]}  Nxe4 {[%clk 0:02:58]} 5. d4 {[%clk 0:02:51]}  Nd6 {[%clk 0:02:58]} 6. dxe5 {[%clk 0:02:51]}  Nxb5 {[%clk 0:02:57]} 7. a4 {[%clk 0:02:51]}  Nbd4 {[%clk 0:02:54]} 8. Nxd4 {[%clk 0:02:51]}  d5 {[%clk 0:02:54]} 9. exd6 {[%clk 0:02:51]}  Nxd4 {[%clk 0:02:51]} 10. Qxd4 {[%clk 0:02:50]}  Qxd6 {[%clk 0:02:49]} 11. Qe4+ {[%clk 0:02:50]}  Be7 {[%clk 0:02:46]} 12. Nc3 {[%clk 0:02:29]}  c6 {[%clk 0:02:39]} 13. Bg5 {[%clk 0:02:26]}  f6 {[%clk 0:02:33]} 14. Bf4 {[%clk 0:02:04]}  Qe6 {[%clk 0:02:33]} 15. Qf3 {[%clk 0:02:03]}  O-O {[%clk 0:02:30]} 16. Rfe1 {[%clk 0:02:03]}  Qf7 {[%clk 0:02:30]} 17. Rad1 {[%clk 0:02:01]}  Re8 {[%clk 0:02:21]} 18. h3 {[%clk 0:00:59]}  Bf5 {[%clk 0:02:18]} 19. Re2 {[%clk 0:00:50]}  Bb4 {[%clk 0:02:10]} 20. Rde1 {[%clk 0:00:48]}  Bxc2 {[%clk 0:02:06]} 21. h4 {[%clk 0:00:17]}  Rxe2 {[%clk 0:02:00]} 22. Rxe2 {[%clk 0:00:17]}  Bb3 {[%clk 0:01:51]} 23. Ne4 {[%clk 0:00:12]}  Bd1 {[%clk 0:01:49]} 24. Qd3 {[%clk 0:00:03]}  Bxe2 {[%clk 0:01:46]} 25. Qxe2 {[%clk 0:00:04]}  Re8 {[%clk 0:01:42]} 26. Qc2 {[%clk 0:00:01]}  Qd5 {[%clk 0:01:42]} 27. f3 {[%clk 0:00:01]}  Qd4+ {[%clk 0:01:39]} 28. Kh1 {[%clk 0:00:01]}  Rd8 {[%clk 0:01:31]} 29. Qb3+ {[%clk 0:00:02]}  Rd5 {[%clk 0:01:29]} 30. Kh2 {[%clk 0:00:01]}  h5 {[%clk 0:01:22]} 31. Bg3 {[%clk 0:00:02]}  Kh7 {[%clk 0:01:18]} 32. Nf2 {[%clk 0:00:02]}  Be1 {[%clk 0:01:15]} 33. Qc2+ {[%clk 0:00:03]}  Kg8 {[%clk 0:01:12]} 34. Qe2 {[%clk 0:00:02]}  Bxf2 {[%clk 0:01:09]} 35. Qe8+ {[%clk 0:00:02]}  Kh7 {[%clk 0:01:09]} 36. Bxf2 {[%clk 0:00:03]}  Qxf2 {[%clk 0:01:05]} 37. Qe4+ {[%clk 0:00:03]}  Kh6 {[%clk 0:01:00]} 38. Qf4+ {[%clk 0:00:03]}  Kg6 {[%clk 0:00:59]} 39. Qe4+ {[%clk 0:00:03]}  Kf7 {[%clk 0:01:00]} 40. Kh3 {[%clk 0:00:02]}  Qd4 {[%clk 0:00:56]} 41. Qh7 {[%clk 0:00:02]}  Qe5 {[%clk 0:00:55]} 42. g3 {[%clk 0:00:01]}  Qf5+ {[%clk 0:00:55]} 43. Qxf5 {[%clk 0:00:02]}  Rxf5 {[%clk 0:00:56]} 44. f4 {[%clk 0:00:03]}  Rc5 {[%clk 0:00:56]} 45. b4 {[%clk 0:00:03]}  Rc4 {[%clk 0:00:56]} 46. b5 {[%clk 0:00:04]}  Rxa4 {[%clk 0:00:56]} 47. b6 {[%clk 0:00:04]}  axb6 {[%clk 0:00:56]} 48. Kg2 {[%clk 0:00:04]}  Ra3 {[%clk 0:00:56]} 49. Kh2 {[%clk 0:00:04]}  b5 {[%clk 0:00:57]} 50. Kh3 {[%clk 0:00:05]}  b4 {[%clk 0:00:58]} 51. f5 {[%clk 0:00:05]}  Rc3 {[%clk 0:00:58]} 52. Kg2 {[%clk 0:00:05]}  b3 {[%clk 0:00:59]} 53. g4 {[%clk 0:00:05]}  b2 {[%clk 0:00:59]} 54. g5 {[%clk 0:00:06]}  b1=Q {[%clk 0:00:58]} 55. g6+ {[%clk 0:00:07]}  Ke7 {[%clk 0:00:58]} 56. Kh2 {[%clk 0:00:07]}  Qb2+ {[%clk 0:00:59]} 57. Kg1 {[%clk 0:00:07]}  Rc1# {[%clk 0:01:00]} 0-1


[Site "https://www.chess.com"]

[Event "Titled Tuesday Blitz January 03 Early 2023"]
[White "Tatarinov, Dmitry"]
[Black "Rustemov, Alexander"]
[WhiteFideId "24160067"]
[BlackFideId "4119002"]
[WhiteElo "2310"]
[BlackElo "2525"]
[Result "1-0"]
[Round "06"]
[TimeControl "180+2"]
[Date "2023.01.03"]
[WhiteClock "0:00:42"]
[BlackClock "0:00:22"]

1. d4 {[%clk 0:03:00]}  g6 {[%clk 0:02:55]} 2. c4 {[%clk 0:03:01]}  Bg7 {[%clk 0:02:55]} 3. Nf3 {[%clk 0:03:01]}  d6 {[%clk 0:02:53]} 4. g3 {[%clk 0:03:01]}  e5 {[%clk 0:02:53]} 5. Nc3 {[%clk 0:02:59]}  Nc6 {[%clk 0:02:48]} 6. dxe5 {[%clk 0:02:58]}  dxe5 {[%clk 0:02:46]} 7. Qxd8+ {[%clk 0:02:58]}  Nxd8 {[%clk 0:02:46]} 8. Bg2 {[%clk 0:02:58]}  Ne6 {[%clk 0:02:44]} 9. O-O {[%clk 0:02:58]}  f5 {[%clk 0:02:32]} 10. e4 {[%clk 0:02:58]}  f4 {[%clk 0:02:21]} 11. b3 {[%clk 0:02:48]}  c6 {[%clk 0:02:19]} 12. Ba3 {[%clk 0:02:46]}  Nh6 {[%clk 0:02:15]} 13. Rad1 {[%clk 0:02:45]}  Nf7 {[%clk 0:02:14]} 14. Rfe1 {[%clk 0:02:43]}  g5 {[%clk 0:02:13]} 15. Bh3 {[%clk 0:02:32]}  Nd4 {[%clk 0:01:57]} 16. Nxd4 {[%clk 0:02:30]}  Bxh3 {[%clk 0:01:51]} 17. Nf5 {[%clk 0:02:29]}  Bf6 {[%clk 0:01:44]} 18. f3 {[%clk 0:02:22]}  h5 {[%clk 0:01:42]} 19. Na4 {[%clk 0:02:06]}  g4 {[%clk 0:01:33]} 20. Nc5 {[%clk 0:01:53]}  gxf3 {[%clk 0:01:26]} 21. Nxb7 {[%clk 0:01:53]}  Bxf5 {[%clk 0:01:17]} 22. exf5 {[%clk 0:01:53]}  fxg3 {[%clk 0:01:15]} 23. hxg3 {[%clk 0:01:54]}  h4 {[%clk 0:01:16]} 24. Kf2 {[%clk 0:01:26]}  hxg3+ {[%clk 0:01:15]} 25. Kxf3 {[%clk 0:01:26]}  Rh2 {[%clk 0:01:03]} 26. Kxg3 {[%clk 0:01:20]}  Rxa2 {[%clk 0:01:02]} 27. Nd6+ {[%clk 0:01:20]}  Nxd6 {[%clk 0:00:59]} 28. Bxd6 {[%clk 0:01:20]}  Rb2 {[%clk 0:00:53]} 29. Bxe5 {[%clk 0:01:04]}  Rxb3+ {[%clk 0:00:53]} 30. Kg4 {[%clk 0:01:05]}  Bxe5 {[%clk 0:00:41]} 31. Rxe5+ {[%clk 0:01:06]}  Kf8 {[%clk 0:00:40]} 32. Rh1 {[%clk 0:01:00]}  Kg7 {[%clk 0:00:34]} 33. Re7+ {[%clk 0:00:59]}  Kf6 {[%clk 0:00:35]} 34. Re6+ {[%clk 0:00:59]}  Kf7 {[%clk 0:00:31]} 35. Rh7+ {[%clk 0:00:57]}  Kg8 {[%clk 0:00:32]} 36. Rc7 {[%clk 0:00:54]}  a5 {[%clk 0:00:27]} 37. Rg6+ {[%clk 0:00:49]}  Kh8 {[%clk 0:00:26]} 38. Rcxc6 {[%clk 0:00:46]}  a4 {[%clk 0:00:26]} 39. Rh6+ {[%clk 0:00:40]}  Kg7 {[%clk 0:00:26]} 40. Rcg6+ {[%clk 0:00:41]}  Kf7 {[%clk 0:00:22]} 41. Rh7+ {[%clk 0:00:41]}  Kf8 {[%clk 0:00:21]} 42. Rh8+ {[%clk 0:00:42]}  Kf7 {[%clk 0:00:21]} 43. Rxa8 {[%clk 0:00:42]}  Rb4 {[%clk 0:00:22]} 44. Kg5 {[%clk 0:00:42]}  Rxc4 {[%clk 0:00:22]} 45. Ra7+ {[%clk 0:00:42]}  Kf8 {[%clk 0:00:22]} 46. Rb6 {[%clk 0:00:42]} 1-0


[Site "https://www.chess.com"]

[Event "Titled Tuesday Blitz January 03 Early 2023"]
[White "Yuan, Qingyu"]
[Black "Shuvalova, Polina"]
[WhiteFideId "8609772"]
[BlackFideId "24171760"]
[WhiteElo "2373"]
[BlackElo "2484"]
[Result "1-0"]
[Round "06"]
[TimeControl "180+2"]
[Date "2023.01.03"]
[WhiteClock "0:00:11"]
[BlackClock "0:00:05"]

1. e4 {[%clk 0:03:00]}  e5 {[%clk 0:02:58]} 2. Nf3 {[%clk 0:03:00]}  Nc6 {[%clk 0:02:59]} 3. Bb5 {[%clk 0:03:00]}  a6 {[%clk 0:02:59]} 4. Ba4 {[%clk 0:03:01]}  Nf6 {[%clk 0:02:59]} 5. d3 {[%clk 0:03:01]}  d6 {[%clk 0:02:55]} 6. c3 {[%clk 0:03:00]}  Be7 {[%clk 0:02:53]} 7. O-O {[%clk 0:03:00]}  O-O {[%clk 0:02:52]} 8. Re1 {[%clk 0:03:00]}  Re8 {[%clk 0:02:52]} 9. Nbd2 {[%clk 0:03:00]}  Bf8 {[%clk 0:02:53]} 10. Nf1 {[%clk 0:03:00]}  h6 {[%clk 0:02:52]} 11. Ng3 {[%clk 0:03:00]}  Rb8 {[%clk 0:02:50]} 12. h3 {[%clk 0:02:46]}  a5 {[%clk 0:02:37]} 13. Bb5 {[%clk 0:02:27]}  Bd7 {[%clk 0:02:31]} 14. d4 {[%clk 0:02:23]}  exd4 {[%clk 0:02:17]} 15. cxd4 {[%clk 0:02:21]}  d5 {[%clk 0:02:17]} 16. e5 {[%clk 0:02:08]}  Ne4 {[%clk 0:01:58]} 17. Nxe4 {[%clk 0:01:51]}  dxe4 {[%clk 0:01:58]} 18. Rxe4 {[%clk 0:01:52]}  Nxe5 {[%clk 0:01:27]} 19. Rxe5 {[%clk 0:01:28]}  Rxe5 {[%clk 0:01:23]} 20. Bxd7 {[%clk 0:01:28]}  Re7 {[%clk 0:00:57]} 21. Ba4 {[%clk 0:01:28]}  b5 {[%clk 0:00:49]} 22. Bc2 {[%clk 0:01:27]}  Rd7 {[%clk 0:00:44]} 23. Be3 {[%clk 0:01:24]}  c5 {[%clk 0:00:42]} 24. Ne5 {[%clk 0:00:59]}  Rd6 {[%clk 0:00:42]} 25. Qf3 {[%clk 0:00:59]}  Rf6 {[%clk 0:00:38]} 26. Qe4 {[%clk 0:00:54]}  g6 {[%clk 0:00:30]} 27. Nc6 {[%clk 0:00:43]}  Rxc6 {[%clk 0:00:23]} 28. Qxc6 {[%clk 0:00:44]}  cxd4 {[%clk 0:00:24]} 29. Bf4 {[%clk 0:00:29]}  Rc8 {[%clk 0:00:23]} 30. Qe4 {[%clk 0:00:28]}  Bg7 {[%clk 0:00:21]} 31. Bd3 {[%clk 0:00:27]}  b4 {[%clk 0:00:21]} 32. Rd1 {[%clk 0:00:26]}  Qd7 {[%clk 0:00:19]} 33. Qe2 {[%clk 0:00:23]}  Re8 {[%clk 0:00:16]} 34. Qd2 {[%clk 0:00:24]}  h5 {[%clk 0:00:13]} 35. Bc4 {[%clk 0:00:20]}  Rc8 {[%clk 0:00:13]} 36. b3 {[%clk 0:00:20]}  Rc5 {[%clk 0:00:11]} 37. Qd3 {[%clk 0:00:20]}  Rc8 {[%clk 0:00:11]} 38. Re1 {[%clk 0:00:19]}  Rd8 {[%clk 0:00:11]} 39. Bd2 {[%clk 0:00:19]}  Qd6 {[%clk 0:00:09]} 40. Re2 {[%clk 0:00:18]}  Qf6 {[%clk 0:00:08]} 41. g3 {[%clk 0:00:17]}  Rd7 {[%clk 0:00:09]} 42. h4 {[%clk 0:00:18]}  Kh7 {[%clk 0:00:09]} 43. Bg5 {[%clk 0:00:17]}  Qc6 {[%clk 0:00:07]} 44. Re1 {[%clk 0:00:15]}  Qc5 {[%clk 0:00:07]} 45. Bf4 {[%clk 0:00:15]}  Rd8 {[%clk 0:00:07]} 46. Qe4 {[%clk 0:00:15]}  Rd7 {[%clk 0:00:06]} 47. Qd3 {[%clk 0:00:15]}  Rd8 {[%clk 0:00:06]} 48. Re4 {[%clk 0:00:15]}  Rd7 {[%clk 0:00:06]} 49. Kg2 {[%clk 0:00:15]}  Qf5 {[%clk 0:00:07]} 50. Re8 {[%clk 0:00:12]}  Qc5 {[%clk 0:00:06]} 51. Re1 {[%clk 0:00:11]}  Qc6+ {[%clk 0:00:06]} 52. Qf3 {[%clk 0:00:11]}  Qc5 {[%clk 0:00:06]} 53. Bd3 {[%clk 0:00:11]}  Qc3 {[%clk 0:00:06]} 54. Rd1 {[%clk 0:00:10]}  Qc5 {[%clk 0:00:06]} 55. Rc1 {[%clk 0:00:09]}  Qb6 {[%clk 0:00:04]} 56. Qxh5+ {[%clk 0:00:09]}  Kg8 {[%clk 0:00:04]} 57. Qf3 {[%clk 0:00:10]}  Qf6 {[%clk 0:00:04]} 58. Rc6 {[%clk 0:00:10]}  Qe7 {[%clk 0:00:04]} 59. Rc8+ {[%clk 0:00:10]}  Kh7 {[%clk 0:00:04]} 60. h5 {[%clk 0:00:11]}  f5 {[%clk 0:00:03]} 61. hxg6+ {[%clk 0:00:12]}  Kxg6 {[%clk 0:00:03]} 62. Qg4+ {[%clk 0:00:12]}  Kf7 {[%clk 0:00:03]} 63. Qxf5+ {[%clk 0:00:12]}  Bf6 {[%clk 0:00:04]} 64. Qh5+ {[%clk 0:00:12]}  Ke6 {[%clk 0:00:05]} 65. Bf5+ {[%clk 0:00:11]}  Kd5 {[%clk 0:00:05]} 66. Qf3+ {[%clk 0:00:11]} 1-0


[Site "https://www.chess.com"]

[Event "Titled Tuesday Blitz January 03 Early 2023"]
[White "Tan, Zhongyi"]
[Black "Bayramov, Zaur"]
[WhiteFideId "8603642"]
[BlackFideId "13405080"]
[WhiteElo "2517"]
[BlackElo "2276"]
[Result "1-0"]
[Round "06"]
[TimeControl "180+2"]
[Date "2023.01.03"]
[WhiteClock "0:00:11"]
[BlackClock "0:00:14"]

1. e4 {[%clk 0:02:56]}  e5 {[%clk 0:02:59]} 2. Nf3 {[%clk 0:02:56]}  Nc6 {[%clk 0:02:59]} 3. Bc4 {[%clk 0:02:56]}  Be7 {[%clk 0:02:57]} 4. d4 {[%clk 0:02:53]}  exd4 {[%clk 0:02:57]} 5. Nxd4 {[%clk 0:02:53]}  d6 {[%clk 0:02:55]} 6. O-O {[%clk 0:02:52]}  Nf6 {[%clk 0:02:54]} 7. Nc3 {[%clk 0:02:51]}  O-O {[%clk 0:02:55]} 8. Re1 {[%clk 0:02:50]}  Bd7 {[%clk 0:02:54]} 9. h3 {[%clk 0:02:48]}  Re8 {[%clk 0:02:54]} 10. Bf4 {[%clk 0:02:46]}  Bf8 {[%clk 0:02:46]} 11. Qd2 {[%clk 0:02:38]}  g6 {[%clk 0:02:42]} 12. Rad1 {[%clk 0:02:36]}  Bg7 {[%clk 0:02:41]} 13. Nf3 {[%clk 0:02:35]}  Be6 {[%clk 0:02:37]} 14. Nd5 {[%clk 0:02:31]}  Bxd5 {[%clk 0:02:34]} 15. exd5 {[%clk 0:02:31]}  Ne7 {[%clk 0:02:23]} 16. Bb5 {[%clk 0:02:28]}  Rf8 {[%clk 0:02:22]} 17. c4 {[%clk 0:02:27]}  a6 {[%clk 0:02:09]} 18. Ba4 {[%clk 0:02:27]}  b5 {[%clk 0:02:09]} 19. Bb3 {[%clk 0:02:27]}  Nd7 {[%clk 0:02:04]} 20. Bg5 {[%clk 0:02:26]}  Re8 {[%clk 0:02:01]} 21. Nd4 {[%clk 0:02:25]}  Bf6 {[%clk 0:01:57]} 22. cxb5 {[%clk 0:02:17]}  axb5 {[%clk 0:01:51]} 23. Nxb5 {[%clk 0:02:07]}  Bxg5 {[%clk 0:01:24]} 24. Qxg5 {[%clk 0:02:06]}  Nc5 {[%clk 0:01:23]} 25. Bc4 {[%clk 0:02:02]}  Qd7 {[%clk 0:01:23]} 26. b4 {[%clk 0:01:41]}  Na4 {[%clk 0:01:19]} 27. Rc1 {[%clk 0:01:41]}  Nb6 {[%clk 0:01:18]} 28. Nxc7 {[%clk 0:01:22]}  Qxc7 {[%clk 0:01:08]} 29. Bb5 {[%clk 0:01:22]}  Qb7 {[%clk 0:01:03]} 30. Bxe8 {[%clk 0:01:21]}  Rxe8 {[%clk 0:01:04]} 31. Rc6 {[%clk 0:01:05]}  Nbxd5 {[%clk 0:01:00]} 32. Rc4 {[%clk 0:00:44]}  Qa6 {[%clk 0:01:00]} 33. Rd4 {[%clk 0:00:37]}  Rb8 {[%clk 0:00:47]} 34. Rxd5 {[%clk 0:00:20]}  Nxd5 {[%clk 0:00:46]} 35. Qxd5 {[%clk 0:00:21]}  Rxb4 {[%clk 0:00:46]} 36. Re7 {[%clk 0:00:15]}  Rf4 {[%clk 0:00:38]} 37. Qg5 {[%clk 0:00:11]}  Rf5 {[%clk 0:00:29]} 38. Re8+ {[%clk 0:00:11]}  Kg7 {[%clk 0:00:28]} 39. Qd8 {[%clk 0:00:12]}  Qxa2 {[%clk 0:00:14]} 40. Rg8+ {[%clk 0:00:11]}  Kh6 {[%clk 0:00:15]} 41. Qh4+ {[%clk 0:00:12]}  Rh5 {[%clk 0:00:14]} 42. Qf4+ {[%clk 0:00:12]}  Rg5 {[%clk 0:00:14]} 43. h4 {[%clk 0:00:11]} 1-0


[Site "https://www.chess.com"]

[Event "Titled Tuesday Blitz January 03 Early 2023"]
[White "Janaszak, Dawid"]
[Black "Preotu, Razvan"]
[WhiteFideId "1119206"]
[BlackFideId "2613280"]
[WhiteElo "2316"]
[BlackElo "2475"]
[Result "0-1"]
[Round "06"]
[TimeControl "180+2"]
[Date "2023.01.03"]
[WhiteClock "0:00:09"]
[BlackClock "0:00:04"]

1. e4 {[%clk 0:02:58]}  c5 {[%clk 0:02:59]} 2. Nc3 {[%clk 0:02:55]}  d6 {[%clk 0:02:59]} 3. d4 {[%clk 0:02:55]}  cxd4 {[%clk 0:03:00]} 4. Qxd4 {[%clk 0:02:55]}  Nc6 {[%clk 0:02:59]} 5. Qd2 {[%clk 0:02:55]}  g6 {[%clk 0:02:59]} 6. b3 {[%clk 0:02:55]}  Bh6 {[%clk 0:02:59]} 7. f4 {[%clk 0:02:55]}  Nf6 {[%clk 0:02:59]} 8. Bb2 {[%clk 0:02:55]}  O-O {[%clk 0:03:00]} 9. O-O-O {[%clk 0:02:55]}  e5 {[%clk 0:02:59]} 10. g3 {[%clk 0:02:41]}  Re8 {[%clk 0:02:58]} 11. Kb1 {[%clk 0:02:35]}  Nd4 {[%clk 0:02:56]} 12. Bg2 {[%clk 0:02:30]}  Bg4 {[%clk 0:02:46]} 13. Re1 {[%clk 0:02:30]}  Rc8 {[%clk 0:02:44]} 14. h3 {[%clk 0:02:30]}  Bd7 {[%clk 0:02:32]} 15. Nge2 {[%clk 0:02:29]}  Bg7 {[%clk 0:02:25]} 16. Nxd4 {[%clk 0:02:23]}  exd4 {[%clk 0:02:25]} 17. Qxd4 {[%clk 0:02:05]}  Nxe4 {[%clk 0:02:23]} 18. Nxe4 {[%clk 0:02:01]}  Bxd4 {[%clk 0:02:21]} 19. Bxd4 {[%clk 0:02:01]}  Rxe4 {[%clk 0:02:21]} 20. Bxe4 {[%clk 0:01:58]}  Bc6 {[%clk 0:01:57]} 21. Rh2 {[%clk 0:01:58]}  Qa5 {[%clk 0:01:31]} 22. Rhe2 {[%clk 0:01:54]}  Re8 {[%clk 0:01:29]} 23. Bf2 {[%clk 0:01:01]}  Bxe4 {[%clk 0:01:20]} 24. Rxe4 {[%clk 0:01:02]}  Rxe4 {[%clk 0:01:19]} 25. Rxe4 {[%clk 0:01:03]}  Qd5 {[%clk 0:01:00]} 26. Re8+ {[%clk 0:00:59]}  Kg7 {[%clk 0:00:59]} 27. Be1 {[%clk 0:01:00]}  Qd1+ {[%clk 0:00:54]} 28. Kb2 {[%clk 0:00:59]}  d5 {[%clk 0:00:55]} 29. Bf2 {[%clk 0:00:48]}  b6 {[%clk 0:00:47]} 30. g4 {[%clk 0:00:36]}  h5 {[%clk 0:00:19]} 31. g5 {[%clk 0:00:27]}  f5 {[%clk 0:00:08]} 32. Re7+ {[%clk 0:00:21]}  Kf8 {[%clk 0:00:09]} 33. Rxa7 {[%clk 0:00:22]}  Qd2 {[%clk 0:00:04]} 34. Bxb6 {[%clk 0:00:19]}  Qxf4 {[%clk 0:00:05]} 35. Bc5+ {[%clk 0:00:16]}  Ke8 {[%clk 0:00:05]} 36. a4 {[%clk 0:00:17]}  Qd2 {[%clk 0:00:02]} 37. Re7+ {[%clk 0:00:14]}  Kd8 {[%clk 0:00:02]} 38. a5 {[%clk 0:00:15]}  d4 {[%clk 0:00:02]} 39. Re6 {[%clk 0:00:13]}  Qc3+ {[%clk 0:00:02]} 40. Kb1 {[%clk 0:00:13]}  Qxc5 {[%clk 0:00:03]} 41. a6 {[%clk 0:00:13]}  Kc7 {[%clk 0:00:02]} 42. Rxg6 {[%clk 0:00:13]}  Kb8 {[%clk 0:00:02]} 43. Rf6 {[%clk 0:00:13]}  Qe5 {[%clk 0:00:02]} 44. Rf7 {[%clk 0:00:11]}  Qe6 {[%clk 0:00:02]} 45. Rb7+ {[%clk 0:00:10]}  Ka8 {[%clk 0:00:02]} 46. h4 {[%clk 0:00:10]}  f4 {[%clk 0:00:02]} 47. Rh7 {[%clk 0:00:09]}  f3 {[%clk 0:00:03]} 48. Rh8+ {[%clk 0:00:09]}  Ka7 {[%clk 0:00:03]} 49. Rf8 {[%clk 0:00:10]}  Qe1+ {[%clk 0:00:03]} 50. Ka2 {[%clk 0:00:09]}  f2 {[%clk 0:00:04]} 51. Rf7+ {[%clk 0:00:08]}  Kxa6 {[%clk 0:00:04]} 52. g6 {[%clk 0:00:09]}  f1=Q {[%clk 0:00:04]} 0-1


[Site "https://www.chess.com"]

[Event "Titled Tuesday Blitz January 03 Early 2023"]
[White "Kadric, Denis"]
[Black "Iljin, Timofey"]
[WhiteFideId "14403803"]
[BlackFideId "14110180"]
[WhiteElo "2601"]
[BlackElo "2329"]
[Result "1-0"]
[Round "06"]
[TimeControl "180+2"]
[Date "2023.01.03"]
[WhiteClock "0:01:05"]
[BlackClock "0:00:05"]

1. e4 {[%clk 0:02:42]}  e5 {[%clk 0:02:59]} 2. Nf3 {[%clk 0:02:41]}  Nc6 {[%clk 0:03:00]} 3. Bc4 {[%clk 0:02:42]}  Nf6 {[%clk 0:03:00]} 4. d3 {[%clk 0:02:42]}  Bc5 {[%clk 0:03:00]} 5. O-O {[%clk 0:02:42]}  d6 {[%clk 0:03:00]} 6. c3 {[%clk 0:02:42]}  a6 {[%clk 0:02:59]} 7. Bb3 {[%clk 0:02:42]}  b5 {[%clk 0:02:59]} 8. Re1 {[%clk 0:02:42]}  h6 {[%clk 0:02:58]} 9. Nbd2 {[%clk 0:02:43]}  O-O {[%clk 0:02:58]} 10. Nf1 {[%clk 0:02:43]}  Bb6 {[%clk 0:02:57]} 11. Ng3 {[%clk 0:02:43]}  Ne7 {[%clk 0:02:58]} 12. d4 {[%clk 0:02:43]}  Ng6 {[%clk 0:02:58]} 13. h3 {[%clk 0:02:43]}  c5 {[%clk 0:02:54]} 14. Be3 {[%clk 0:02:40]}  c4 {[%clk 0:02:51]} 15. Bc2 {[%clk 0:02:40]}  Bb7 {[%clk 0:02:48]} 16. Qd2 {[%clk 0:02:33]}  Kh7 {[%clk 0:02:26]} 17. Rad1 {[%clk 0:02:32]}  Qc7 {[%clk 0:02:21]} 18. Qc1 {[%clk 0:02:07]}  Rad8 {[%clk 0:02:06]} 19. Nf5 {[%clk 0:02:00]}  Ng8 {[%clk 0:01:50]} 20. Nh2 {[%clk 0:01:48]}  N6e7 {[%clk 0:01:31]} 21. Ng3 {[%clk 0:01:47]}  Nf6 {[%clk 0:01:23]} 22. f4 {[%clk 0:01:47]}  exd4 {[%clk 0:01:16]} 23. e5+ {[%clk 0:01:16]}  Ng6 {[%clk 0:01:16]} 24. cxd4 {[%clk 0:01:10]}  dxe5 {[%clk 0:01:12]} 25. fxe5 {[%clk 0:01:09]}  Nd5 {[%clk 0:01:04]} 26. Bxh6 {[%clk 0:01:10]}  gxh6 {[%clk 0:00:49]} 27. Ng4 {[%clk 0:01:10]}  Nf4 {[%clk 0:00:46]} 28. Qxf4 {[%clk 0:01:09]}  Qc6 {[%clk 0:00:05]} 29. Qxh6+ {[%clk 0:01:03]}  Kg8 {[%clk 0:00:06]} 30. Nf6+ {[%clk 0:01:04]}  Qxf6 {[%clk 0:00:06]} 31. exf6 {[%clk 0:01:05]}  Bxd4+ {[%clk 0:00:05]} 32. Rxd4 {[%clk 0:01:05]} 1-0


[Site "https://www.chess.com"]